[Event "13th London Chess Classic 2023"]
[Site "London"]
[Date "2023.12.10"]
[Round "9.4"]
[White "Niemann, Hans Moke"]
[Black "Gukesh D"]
[Result "1-0"]
[ECO "C54"]
[WhiteElo "2659"]
[BlackElo "2746"]
[Annotator "TA"]
[PlyCount "69"]
[EventDate "2023.11.27"]
[EventType "tourn"]
[EventCountry "ENG"]
[SourceTitle "playchess.com"]
[Source "ChessBase"]
[SourceQuality "1"]
[TimeControl "40/5400+30:1800+30"]

{[%evp 11,69,16,20,14,35,20,22,0,28,-9,-4,0,-12,-20,-12,-63,-63,-70,-18,-45,13,0,22,0,19,0,45,31,48,0,199,221,221,175,170,197,250,250,246,259,310,239,315,315,315,314,314,314,314,307,337,337,639,628,604,602,602,578,554,545]} 1. e4 {[%emt 0:01:17]} e5 {[%emt 0:00:06]} 2. Nf3 {[%emt 0:00:21]} Nc6 {[%emt 0:00:06]} 3. Bc4 {[%emt 0:01:40]} Bc5 {[%emt 0:00:18]} 4. d3 {[%emt 0:00:37]} Nf6 {[%emt 0:00:07]} 5. O-O {[%emt 0:00:10]} d6 {[%emt 0:00:12]} 6. c3 {[%emt 0:00:14]} a6 {[%emt 0:00:44]} 7. a4 {[%emt 0:01:05] C54: Giuoco Piano: 4 c3 Nf6, main lines with 5 d4 and 5 d3.} Ba7 {[%emt 0:00:15]} 8. Re1 {[%emt 0:01:22] 8.Re1 is better than 8.Nbd2.} h6 {[%emt 0:01:04][%cal Bh7h6,Bh6h5,Bh5h4][%mdl 32]} 9. a5 {[%emt 0:02:15] The position is equal.} g5 {[%emt 0:01:08]} 10. Be3 {[%emt 0:01:24]} g4 {[%emt 0:04:06] [#] Strongly threatening ...Bxe3.} 11. Nfd2 {[%emt 0:01:12] [#]} Bxe3 $146 {[%emt 0:00:57]} ({Predecessor:} 11... h5 12. Bxa7 Rxa7 13. b4 h4 14. Rf1 Nh5 15. Na3 Nf4 16. Nc2 Qg5 17. Ne3 g3 {1-0 Yu,Y (2704)-Ju,W (2560) Danzhou 12th rapid 2021 (3)}) 12. fxe3 {[%emt 0:01:08]} Nh7 {[%emt 0:05:48]} 13. Nf1 {[%emt 0:06:05]} (13. b4 $11) 13... h5 $15 {[%emt 0:05:04]} 14. Ng3 {[%emt 0:00:14]} Qg5 {[%emt 0:04:30]} ({Better is} 14... h4 $15 15. Nf5 Bxf5 16. exf5 d5) 15. Nd2 $11 {[%emt 0:07:45][%cal Og3f5]} Ne7 {[%emt 0:03:36]} ({Black should try} 15... Nf6 $15) 16. Qa4+ {[%emt 0:01:33]} c6 {[%emt 0:11:45]} 17. Qb4 $36 {[%emt 0:02:25][%mdl 2048] White has good play.} (17. Bb3 $5 {[%cal Rd2c4]}) 17... h4 {[%emt 0:01:09]} 18. Nf5 {[%emt 0:02:03]} Bxf5 {[%emt 0:13:20]} 19. exf5 {[%emt 0:00:19] Black must now prevent Ne4.} (19. Qxb7 $5 O-O $8 20. exf5 $14) 19... d5 {[%emt 0:00:04] Wards off Ne4} 20. Bb3 {[%emt 0:00:32]} (20. Ba2 $14 {is superior.}) 20... O-O $2 {[%emt 0:13:10] [#] White leaves nothing to chance now.} (20... O-O-O $11 {and Black stays safe.}) 21. Ra4 $1 $18 {[%emt 0:01:08][%cal Ba1a4,Ba4h4,Bh4h2][%mdl 32]} ({Don't take} 21. Qxb7 $6 Rfe8 $14) 21... g3 {[%emt 0:07:06]} 22. Qxh4 {[%emt 0:14:20]} Qxh4 {[%emt 0:00:36]} 23. Rxh4 {[%emt 0:00:10]} gxh2+ {[%emt 0:02:30]} (23... Nxf5 $142 24. Rg4+ Kh8 25. hxg3 Rfd8) 24. Rxh2 {[%emt 0:07:16]} ({Don't do} 24. Kxh2 $6 Kg7 25. Kg1 Nxf5 $16) 24... f6 {[%emt 0:09:20] Black is weak on the light squares} 25. e4 {[%emt 0:01:00]} Rf7 {[%emt 0:00:03]} 26. Nf3 {[%emt 0:01:26]} Rg7 {[%emt 0:01:13]} 27. d4 {[%emt 0:04:12]} exd4 {[%emt 0:00:45]} 28. Nxd4 {[%emt 0:00:24] Ne6 is the strong threat.} Ng5 {[%emt 0:00:30]} 29. exd5 {[%emt 0:00:52]} Nxd5 {[%emt 0:00:04]} 30. Rh6 {[%emt 0:03:10]} Kf7 {[%emt 0:00:29]} 31. Kf1 {[%emt 0:01:20]} Rag8 $2 {[%emt 0:07:12]} (31... Rh7) 32. c4 {[%emt 0:03:58] White is clearly winning.} Nc7 {[%emt 0:00:10]} 33. c5+ {[%emt 0:00:06]} Nd5 {[%emt 0:00:01]} 34. Bxd5+ {[%emt 0:00:29]} cxd5 {[%emt 0:00:07]} 35. Ne6 {[%emt 0:00:05] Weighted Error Value: White=0.16 (very precise) /Black=0.39} 1-0

[Event "13th London Chess Classic 2023"]
[Site "London"]
[Date "2023.12.10"]
[Round "9.5"]
[White "Bartel, Mateusz"]
[Black "Vitiugov, Nikita"]
[Result "1/2-1/2"]
[ECO "B30"]
[WhiteElo "2651"]
[BlackElo "2712"]
[Annotator "TA"]
[PlyCount "79"]
[EventDate "2023.11.27"]
[EventType "tourn"]
[EventCountry "ENG"]
[SourceTitle "playchess.com"]
[Source "ChessBase"]
[SourceQuality "1"]
[TimeControl "40/5400+30:1800+30"]

{[%evp 14,79,-5,-1,-1,-4,0,-10,-5,-25,-9,-21,19,-24,-20,-21,0,0,0,0,0,0,0,0,3,0,0,0,0,0,0,-2,0,0,0,0,0,0,0,0,0,0,0,0,0,0,0,0,0,0,0,0,0,0,0,0,0,0,0,0,0,0,0,0,0,0,0,0]} 1. e4 {[%emt 0:00:03]} c5 {[%emt 0:00:06]} 2. Nf3 {[%emt 0:00:06]} Nc6 {[%emt 0:00:06]} 3. Nc3 {[%emt 0:00:19]} g6 {[%emt 0:00:14]} 4. Bc4 {[%emt 0:00:35]} Bg7 {[%emt 0:00:23]} 5. O-O {[%emt 0:00:15]} d6 {[%emt 0:00:12]} 6. d3 {[%emt 0:04:26]} e6 {[%emt 0:00:11]} 7. Bd2 {[%emt 0:08:57]} Nge7 {[%emt 0:00:53]} 8. a3 {[%emt 0:00:06]} O-O {[%emt 0:01:15] B30: Sicilian: 2...Nc6 3 Bb5, lines without ...g6.} 9. Rb1 {[%emt 0:04:26]} a6 {[%emt 0:04:02]} 10. b4 {[%emt 0:00:22]} b5 {[%emt 0:00:40]} 11. Ba2 {[%emt 0:00:06]} Bb7 {[%emt 0:05:15] [#]} 12. Ne2 $146 {[%emt 0:02:17]} ({Predecessor:} 12. g3 cxb4 13. axb4 Qc7 14. Ne2 d5 15. Bf4 Qd7 16. c3 Rad8 17. e5 Qc7 18. h4 Nxe5 {0-1 Ortiz,J (486)-Bortnicker,J (912) RN-2015-0-00945}) 12... Qd7 {[%emt 0:02:09]} 13. Be3 {[%emt 0:05:05]} cxb4 {[%emt 0:00:53]} 14. axb4 {[%emt 0:00:03] The position is equal.} a5 {[%emt 0:01:10]} 15. bxa5 {[%emt 0:00:11]} Rxa5 {[%emt 0:00:17]} 16. Bb3 {[%emt 0:00:40]} d5 {[%emt 0:02:02]} 17. Qc1 {[%emt 0:12:54]} dxe4 {[%emt 0:03:33]} 18. dxe4 {[%emt 0:00:09]} Qc7 {[%emt 0:03:00]} 19. Bf4 {[%emt 0:08:57]} Ne5 {[%emt 0:04:55]} 20. Nxe5 $1 {[%emt 0:00:07]} Bxe5 {[%emt 0:00:05]} 21. Qe3 {[%emt 0:00:05]} b4 {[%emt 0:03:17]} 22. Rfd1 {[%emt 0:02:57]} Rd8 {[%emt 0:11:01]} 23. Bxe5 {[%emt 0:09:45]} Rxd1+ {[%emt 0:08:21]} 24. Rxd1 {[%emt 0:00:40]} Qxe5 {[%emt 0:00:24]} 25. f3 {[%emt 0:02:25]} Ra1 {[%emt 0:05:35]} 26. Rxa1 {[%emt 0:00:06]} Qxa1+ {[%emt 0:00:04]} 27. Kf2 {[%emt 0:00:05]} Qa5 {[%emt 0:00:37] Prevents Qb6} 28. Nf4 {[%emt 0:00:14]} Nc6 {[%emt 0:02:22]} 29. Nd3 {[%emt 0:01:52]} Ba6 {[%emt 0:00:44]} 30. Qc5 {[%emt 0:08:35]} Bxd3 {[%emt 0:01:09]} 31. Qxc6 $11 {[%emt 0:00:07][%mdl 4096] Endgame KQB-KQB} Qa7+ {[%emt 0:00:34]} 32. Kg3 {[%emt 0:00:03]} Bf1 {[%emt 0:01:47] [#] And now ...Qg1 would win.} 33. Qd6 {[%emt 0:03:32]} Qe3 {[%emt 0:12:10] Strongly threatening ...Qg5+.} 34. h4 {[%emt 0:01:00] Inhibits Qg5+.} Qe1+ {[%emt 0:04:31]} 35. Kh3 {[%emt 0:00:34]} Qf2 {[%emt 0:02:34][%csl Gf1][%cal Rf2g2]} 36. Qb8+ {[%emt 0:00:54]} Kg7 {[%emt 0:00:04][%csl Gf1][%cal Rf2g2] [#]} 37. Qe5+ {[%emt 0:00:05]} Kg8 {[%emt 0:00:28][%csl Gf1][%cal Rf2g2]} 38. Qb8+ {[%emt 0:00:17]} Kg7 {[%emt 0:00:05][%csl Gf1][%cal Rf2g2]} 39. Qe5+ {[%emt 0:00:05]} Kg8 {[%emt 0:00:10][%csl Gf1][%cal Rf2g2]} 40. Qb8+ {[%emt 0:00:00] An interesting draw.   Weighted Error Value: White=0.03 (flawless) /Black=0.02 (flawless)} 1/2-1/2